fUST/lending_fUST_20260529
["ID","MTS","AMOUNT","RATE_DAILY","PERIOD"]
[423312053,1780050642000,-500.0,9.589e-05,2]
[423312119,1780050642000,-500.0,9.589e-05,2]
[423312092,1780050642000,-500.0,9.589e-05,2]
[423312058,1780050642000,-555.56,9.589e-05,2]
[423312026,1780050642000,-500.0,9.315e-05,2]
[423312051,1780050642000,-500.0,9.589e-05,2]
[423312117,1780050642000,-500.0,9.589e-05,2]
[423311998,1780050642000,-500.0,9.315e-05,2]
[423312000,1780050642000,-500.0,9.315e-05,2]
[423312010,1780050642000,-500.0,9.315e-05,2]
[423312012,1780050642000,-500.0,9.315e-05,2]
[423312004,1780050642000,-500.0,9.315e-05,2]
[423312002,1780050642000,-500.0,9.315e-05,2]
[423312016,1780050642000,-500.0,9.315e-05,2]
[423312008,1780050642000,-500.0,9.315e-05,2]
[423312014,1780050642000,-500.0,9.315e-05,2]
[423312006,1780050642000,-500.0,9.315e-05,2]
[423312020,1780050642000,-500.0,9.315e-05,2]
[423312018,1780050642000,-500.0,9.315e-05,2]
[423312032,1780050642000,-500.0,9.315e-05,2]
[423312033,1780050642000,-353.76,9.315e-05,2]
[423312029,1780050642000,-500.0,9.315e-05,2]
[423312022,1780050642000,-500.0,9.315e-05,2]
[423312024,1780050642000,-348.12,9.315e-05,2]
[423312027,1780050642000,-500.0,9.315e-05,2]
[423312035,1780050642000,-500.0,9.315e-05,2]
[423312038,1780050642000,-500.0,9.315e-05,2]
[423312040,1780050642000,-500.0,9.315e-05,2]
[423312042,1780050642000,-500.0,9.315e-05,2]
[423312045,1780050642000,-500.0,9.315e-05,2]
[423312043,1780050642000,-500.0,9.315e-05,2]
[423312047,1780050642000,-500.0,9.315e-05,2]
[423312049,1780050642000,-2944.0463,9.589e-05,2]
[423312062,1780050642000,-500.0,9.589e-05,2]
[423312060,1780050642000,-500.0,9.589e-05,2]
[423312055,1780050642000,-500.0,9.589e-05,2]
[423312121,1780050642000,-500.0,9.589e-05,2]
[423312128,1780050642000,-500.0,9.589e-05,2]
[423312130,1780050642000,-1000.0,9.738e-05,2]
[423312189,1780050642000,-500.0,9.863e-05,2]
[423312193,1780050642000,-500.0,9.863e-05,2]
[423312191,1780050642000,-500.0,9.863e-05,2]
[423312197,1780050642000,-1231.8750059,9.957e-05,2]
[423312199,1780050642000,-555.56,0.00010136,2]
[423312195,1780050642000,-500.0,9.863e-05,2]
[423312201,1780050642000,-500.0,0.00010136,2]
[423312203,1780050642000,-500.0,0.00010136,2]
[423312204,1780050642000,-794.44,0.00010136,2]
[423312217,1780050642000,-500.0,0.00010136,2]
[423312212,1780050642000,-500.0,0.00010136,2]
[423312208,1780050642000,-500.0,0.00010136,2]
[423312219,1780050642000,-500.0,0.00010136,2]
[423312214,1780050642000,-622.33,0.00010136,2]
[423312206,1780050642000,-500.0,0.00010136,2]
[423312210,1780050642000,-500.0,0.00010136,2]
[423312223,1780050642000,-500.0,0.00010136,2]
[423312225,1780050642000,-500.0,0.00010136,2]
[423312221,1780050642000,-500.0,0.00010136,2]
[423312229,1780050642000,-500.0,0.00010136,2]
[423312232,1780050642000,-500.0,0.00010136,2]
[423312227,1780050642000,-500.0,0.00010136,2]
[423312230,1780050642000,-500.0,0.00010136,2]
[423312239,1780050642000,-500.0,0.00010136,2]
[423312242,1780050642000,-500.0,0.00010136,2]
[423312246,1780050642000,-500.0,0.00010136,2]
[423312249,1780050642000,-500.0,0.00010136,2]
[423312252,1780050642000,-500.0,0.00010136,2]
[423312254,1780050642000,-500.0,0.00010136,2]
[423312187,1780050642000,-500.0,9.863e-05,2]
[423312181,1780050642000,-500.0,9.863e-05,2]
[423312215,1780050642000,-255.59003075,0.00010136,2]
[423312183,1780050642000,-500.0,9.863e-05,2]
[423312182,1780050642000,-500.0,9.863e-05,2]
[423312132,1780050642000,-358.29929323,9.745e-05,2]
[423312123,1780050642000,-249.03585224,9.589e-05,2]
[423312144,1780050642000,-500.0,9.863e-05,2]
[423312173,1780050642000,-500.0,9.863e-05,2]
[423312125,1780050642000,-500.0,9.589e-05,2]
[423312146,1780050642000,-366.81751904,9.863e-05,2]
[423312136,1780050642000,-500.0,9.863e-05,2]
[423312157,1780050642000,-546.49,9.863e-05,2]
[423312171,1780050642000,-500.0,9.863e-05,2]
[423312138,1780050642000,-500.0,9.863e-05,2]
[423312163,1780050642000,-500.0,9.863e-05,2]
[423312153,1780050642000,-500.0,9.863e-05,2]
[423312134,1780050642000,-500.0,9.863e-05,2]
[423312140,1780050642000,-555.56,9.863e-05,2]
[423312142,1780050642000,-500.0,9.863e-05,2]
[423312167,1780050642000,-500.0,9.863e-05,2]
[423312165,1780050642000,-500.0,9.863e-05,2]
[423312161,1780050642000,-500.0,9.863e-05,2]
[423312127,1780050642000,-500.0,9.589e-05,2]
[423312151,1780050642000,-500.0,9.863e-05,2]
[423312159,1780050642000,-303.23061934,9.863e-05,2]
[423312169,1780050642000,-500.0,9.863e-05,2]
[423312149,1780050642000,-500.0,9.863e-05,2]
[423312148,1780050642000,-794.44,9.863e-05,2]
[423312155,1780050642000,-500.0,9.863e-05,2]
[423312175,1780050642000,-500.0,9.863e-05,2]
[423312185,1780050642000,-500.0,9.863e-05,2]
[423312179,1780050642000,-380.67,9.863e-05,2]
[423312177,1780050642000,-500.0,9.863e-05,2]
[423312355,1780050643000,-500.0,0.00010684,2]
[423312358,1780050643000,-1000.0,0.00010712,2]
[423312316,1780050643000,-361.12671642,0.0001041,2]
[423312364,1780050643000,-3364.70300086,0.000109,2]
[423312347,1780050643000,-500.0,0.00010684,2]
[423312357,1780050643000,-500.0,0.00010684,2]
[423312318,1780050643000,-500.0,0.0001041,2]
[423312353,1780050643000,-500.0,0.00010684,2]
[423312342,1780050643000,-500.0,0.00010684,2]
[423312322,1780050643000,-323.28446563,0.00010475,2]
[423312320,1780050643000,-500.0,0.0001041,2]
[423312324,1780050643000,-629.96821536,0.00010625,2]
[423312343,1780050643000,-500.0,0.00010684,2]
[423312360,1780050643000,-244.0,0.00010712,2]
[423312349,1780050643000,-500.0,0.00010684,2]
[423312379,1780050643000,-794.44,0.00010958,2]
[423312351,1780050643000,-500.0,0.00010684,2]
[423312345,1780050643000,-500.0,0.00010684,2]
[423312366,1780050643000,-185.98023351,0.000109,2]
[423312368,1780050643000,-160.0,0.00010901,2]
[423312370,1780050643000,-160.0,0.00010907,2]
[423312375,1780050643000,-555.56,0.00010958,2]
[423312372,1780050643000,-160.0,0.00010907,2]
[423312389,1780050643000,-500.0,0.00010958,2]
[423312381,1780050643000,-500.0,0.00010958,2]
[423312377,1780050643000,-334.81,0.00010958,2]
[423312383,1780050643000,-500.0,0.00010958,2]
[423312374,1780050643000,-160.0,0.00010907,2]
[423312387,1780050643000,-500.0,0.00010958,2]
[423312362,1780050643000,-162.30333737,0.000109,2]
[423312314,1780050643000,-500.0,0.0001041,2]
[423312264,1780050643000,-187.0,0.00010387,2]
[423312338,1780050643000,-500.0,0.00010684,2]
[423312258,1780050643000,-1835.0,0.00010387,2]
[423312391,1780050643000,-500.0,0.00010958,2]
[423312261,1780050643000,-443.0,0.00010387,2]
[423312270,1780050643000,-1414.0,0.00010387,2]
[423312267,1780050643000,-185.0,0.00010387,2]
[423312273,1780050643000,-555.56,0.0001041,2]
[423312275,1780050643000,-500.0,0.0001041,2]
[423312278,1780050643000,-598.01223545,0.0001041,2]
[423312281,1780050643000,-794.44,0.0001041,2]
[423312284,1780050643000,-500.0,0.0001041,2]
[423312287,1780050643000,-500.0,0.0001041,2]
[423312289,1780050643000,-500.0,0.0001041,2]
[423312291,1780050643000,-515.81,0.0001041,2]
[423312293,1780050643000,-509.60396456,0.0001041,2]
[423312340,1780050643000,-500.0,0.00010684,2]
[423312306,1780050643000,-500.0,0.0001041,2]
[423312302,1780050643000,-500.0,0.0001041,2]
[423312308,1780050643000,-500.0,0.0001041,2]
[423312301,1780050643000,-500.0,0.0001041,2]
[423312298,1780050643000,-500.0,0.0001041,2]
[423312311,1780050643000,-500.0,0.0001041,2]
[423312299,1780050643000,-500.0,0.0001041,2]
[423312296,1780050643000,-177.31,0.0001041,2]
[423312310,1780050643000,-500.0,0.0001041,2]
[423312326,1780050643000,-555.56,0.00010684,2]
[423312328,1780050643000,-500.0,0.00010684,2]
[423312332,1780050643000,-236.0706516,0.00010684,2]
[423312330,1780050643000,-794.44,0.00010684,2]
[423312334,1780050643000,-500.0,0.00010684,2]
[423312336,1780050643000,-257.68,0.00010684,2]
[423312304,1780050643000,-500.0,0.0001041,2]
[423312393,1780050643000,-500.0,0.00010958,2]
[423312385,1780050643000,-500.0,0.00010958,2]
[423312399,1780050643000,-500.0,0.00010958,2]
[423312464,1780050643000,-151.0,0.000115,2]
[423312460,1780050643000,-151.0,0.000114,2]
[423312468,1780050643000,-555.56,0.00011506,2]
[423312470,1780050643000,-794.44,0.00011506,2]
[423312474,1780050643000,-238.17351876,0.00011506,2]
[423312476,1780050643000,-221.32,0.00011506,2]
[423312472,1780050643000,-500.0,0.00011506,2]
[423312478,1780050643000,-500.0,0.00011506,2]
[423312481,1780050643000,-617.85,0.00011506,2]
[423312487,1780050643000,-500.0,0.00011506,2]
[423312479,1780050643000,-500.0,0.00011506,2]
[423312483,1780050643000,-500.0,0.00011506,2]
[423312491,1780050643000,-151.0,0.000116,2]
[423312493,1780050643000,-503.77514336,0.00011645,2]
[423312462,1780050643000,-3364.70300086,0.000115,2]
[423312489,1780050643000,-3364.70300086,0.000116,2]
[423312495,1780050643000,-3364.70300086,0.000117,2]
[423312497,1780050643000,-555.56,0.0001178,2]
[423312506,1780050643000,-254.8,0.0001178,2]
[423312499,1780050643000,-794.44,0.0001178,2]
[423312501,1780050643000,-500.0,0.0001178,2]
[423312512,1780050643000,-492.0,0.00011783,2]
[423312508,1780050643000,-500.0,0.0001178,2]
[423312503,1780050643000,-500.0,0.0001178,2]
[423312510,1780050643000,-1000.0,0.00011783,2]
[423312516,1780050643000,-151.0,0.000118,2]
[423312520,1780050643000,-3364.70300086,0.00012,2]
[423312518,1780050643000,-51827.25207485,0.000119,2]
[423312514,1780050643000,-3364.70300086,0.000118,2]
[423312395,1780050643000,-500.0,0.00010958,2]
[423312485,1780050643000,-500.0,0.00011506,2]
[423312458,1780050643000,-3364.70300086,0.000114,2]
[423312504,1780050643000,-500.0,0.0001178,2]
[423312456,1780050643000,-358.29929323,0.00011391,2]
[423312466,1780050643000,-151.0,0.000115,2]
[423312401,1780050643000,-500.0,0.00010958,2]
[423312403,1780050643000,-15000.0,0.00010959,2]
[423312407,1780050643000,-3364.70300086,0.00011,2]
[423312405,1780050643000,-162.30333737,0.00011,2]
[423312409,1780050643000,-185.98023351,0.00011,2]
[423312397,1780050643000,-500.0,0.00010958,2]
[423312416,1780050643000,-151.0,0.00011,2]
[423312418,1780050643000,-385.79480694,0.00011104,2]
[423312411,1780050643000,-151.0,0.00011,2]
[423312414,1780050643000,-151.0,0.00011,2]
[423312422,1780050643000,-3364.70300086,0.000112,2]
[423312424,1780050643000,-185.98023351,0.000112,2]
[423312420,1780050643000,-162.30333737,0.000112,2]
[423312427,1780050643000,-794.44,0.00011232,2]
[423312412,1780050643000,-151.0,0.00011,2]
[423312429,1780050643000,-500.0,0.00011232,2]
[423312454,1780050643000,-179.46457805,0.00011318,2]
[423312426,1780050643000,-555.56,0.00011232,2]
[423312452,1780050643000,-3364.70300086,0.000113,2]
[423312450,1780050643000,-162.30333737,0.000113,2]
[423312446,1780050643000,-154.95,0.00011232,2]
[423312444,1780050643000,-500.0,0.00011232,2]
[423312437,1780050643000,-500.0,0.00011232,2]
[423312448,1780050643000,-500.0,0.00011232,2]
[423312435,1780050643000,-500.0,0.00011232,2]
[423312439,1780050643000,-500.0,0.00011232,2]
[423312442,1780050643000,-500.0,0.00011232,2]
[423312431,1780050643000,-500.0,0.00011232,2]
[423312433,1780050643000,-500.0,0.00011232,2]
[423312441,1780050643000,-500.0,0.00011232,2]
[423312579,1780050644000,-500.0,0.00012876,2]
[423312564,1780050644000,-794.44,0.00012602,2]
[423312571,1780050644000,-500.0,0.0001287,2]
[423312567,1780050644000,-500.0,0.00012602,2]
[423312558,1780050644000,-151.0,0.000126,2]
[423312575,1780050644000,-794.44,0.00012876,2]
[423312573,1780050644000,-555.56,0.00012876,2]
[423312587,1780050644000,-436.85588433,0.00013104,2]
[423312577,1780050644000,-344.84,0.00012876,2]
[423312581,1780050644000,-1000.0,0.00012962,2]
[423312594,1780050644000,-500.0,0.0001315,2]
[423312589,1780050644000,-358.29929323,0.00013136,2]
[423312592,1780050644000,-794.44,0.0001315,2]
[423312583,1780050644000,-791.0,0.00012962,2]
[423312585,1780050644000,-151.0,0.00013,2]
[423312596,1780050644000,-151.0,0.000132,2]
[423312598,1780050644000,-151.0,0.000132,2]
[423312600,1780050644000,-151.0,0.000132,2]
[423312590,1780050644000,-555.56,0.0001315,2]
[423312569,1780050644000,-151.0,0.000127,2]
[423312532,1780050644000,-500.0,0.00012054,2]
[423312560,1780050644000,-151.0,0.000126,2]
[423312602,1780050644000,-1835.0,0.00013387,2]
[423312522,1780050644000,-555.56,0.00012054,2]
[423312526,1780050644000,-500.0,0.00012054,2]
[423312524,1780050644000,-794.44,0.00012054,2]
[423312528,1780050644000,-505.1,0.00012054,2]
[423312530,1780050644000,-500.0,0.00012054,2]
[423312534,1780050644000,-151.0,0.000121,2]
[423312536,1780050644000,-151.0,0.000121,2]
[423312565,1780050644000,-500.0,0.00012602,2]
[423312545,1780050644000,-555.56,0.00012328,2]
[423312543,1780050644000,-500.0,0.00012257,2]
[423312539,1780050644000,-151.0,0.000122,2]
[423312541,1780050644000,-794.0,0.000122,2]
[423312547,1780050644000,-794.44,0.00012328,2]
[423312550,1780050644000,-500.0,0.00012328,2]
[423312552,1780050644000,-500.0,0.00012328,2]
[423312562,1780050644000,-555.56,0.00012602,2]
[423312554,1780050644000,-500.0,0.00012328,2]
[423312538,1780050644000,-151.0,0.000121,2]
[423312616,1780050644000,-583.26,0.00013424,2]
[423312556,1780050644000,-151.0,0.000126,2]
[423312614,1780050644000,-794.44,0.00013424,2]
[423312652,1780050644000,-555.62,0.0001452,2]
[423312656,1780050644000,-151.0,0.000146,2]
[423312657,1780050644000,-377.15406081,0.00014738,2]
[423312659,1780050644000,-188.47254885,0.00014742,2]
[423312665,1780050644000,-164.09,0.00014747,2]
[423312661,1780050644000,-164.07,0.00014743,2]
[423312669,1780050644000,-358.29929323,0.00014881,2]
[423312667,1780050644000,-164.07,0.00014747,2]
[423312663,1780050644000,-164.07,0.00014745,2]
[423312673,1780050644000,-151.0,0.000149,2]
[423312671,1780050644000,-151.0,0.000149,2]
[423312675,1780050644000,-151.0,0.000149,2]
[423312677,1780050644000,-179946.62531531,0.00015,2]
[423312689,1780050644000,-983.59412008,0.00015,2]
[423312691,1780050644000,-1658.44732523,0.00015,2]
[423312696,1780050644000,-500.0,9.589e-05,2]
[423312703,1780050644000,-1221.22102609,0.00015,2]
[423312710,1780050644000,-420.8168224,0.00015,2]
[423312604,1780050644000,-443.0,0.00013387,2]
[423312654,1780050644000,-794.54,0.0001452,2]
[423312650,1780050644000,-151.0,0.000143,2]
[423312707,1780050644000,-614.72844071,0.00015,2]
[423312640,1780050644000,-555.56,0.00014246,2]
[423312606,1780050644000,-185.0,0.00013387,2]
[423312608,1780050644000,-1414.0,0.00013387,2]
[423312622,1780050644000,-794.44,0.00013698,2]
[423312618,1780050644000,-500.0,0.00013427,2]
[423312610,1780050644000,-151.0,0.000134,2]
[423312612,1780050644000,-555.56,0.00013424,2]
[423312620,1780050644000,-555.56,0.00013698,2]
[423312624,1780050644000,-1000.0,0.00013699,2]
[423312628,1780050644000,-151.0,0.000138,2]
[423312626,1780050644000,-151.0,0.000138,2]
[423312632,1780050644000,-151.0,0.000138,2]
[423312636,1780050644000,-794.44,0.00013972,2]
[423312647,1780050644000,-151.0,0.000143,2]
[423312645,1780050644000,-1000.0,0.00014258,2]
[423312638,1780050644000,-151.0,0.000142,2]
[423312648,1780050644000,-151.0,0.000143,2]
[423312642,1780050644000,-794.44,0.00014246,2]
[423312630,1780050644000,-151.0,0.000138,2]
[423312634,1780050644000,-555.56,0.00013972,2]
[423312644,1780050644000,-1000.0,0.00014258,2]
[423312828,1780050646000,-500.0,8.219e-05,2]
[423312831,1780050646000,-5674.88095147,0.00015,2]
[423312830,1780050646000,-36050.12147683,0.00015,2]
[423312829,1780050646000,-3262.68542579,0.00015,2]
[423313102,1780050843000,-1000.0,7.9e-05,2]
[423313103,1780050855000,-1000.0,7.9e-05,2]
[423313148,1780051081000,472.0,0.00020216,120]
[423313185,1780051832000,-500.0,8.219e-05,2]
[423313174,1780051832000,-500.0,8.219e-05,2]
[423313189,1780051832000,-500.0,8.219e-05,2]
[423313191,1780051832000,-500.0,8.219e-05,2]
[423313202,1780051832000,-500.0,8.219e-05,2]
[423313206,1780051832000,-500.0,8.219e-05,2]
[423313204,1780051832000,-500.0,8.219e-05,2]
[423313207,1780051832000,-500.0,8.219e-05,2]
[423313208,1780051832000,-500.0,8.219e-05,2]
[423313200,1780051832000,-500.0,8.219e-05,2]
[423313205,1780051832000,-321.68209061,8.219e-05,2]
[423313194,1780051832000,-500.0,8.219e-05,2]
[423313196,1780051832000,-315.20887041,8.219e-05,2]
[423313192,1780051832000,-224.52821222,8.219e-05,2]
[423313184,1780051832000,-500.0,8.219e-05,2]
[423313169,1780051832000,-3878.43669393,8e-05,2]
[423313180,1780051832000,-500.0,8.219e-05,2]
[423313198,1780051832000,-278.1,8.219e-05,2]
[423313171,1780051832000,-1940.16333148,8.119e-05,2]
[423313170,1780051832000,-1121.56330607,8e-05,2]
[423313166,1780051832000,-261.02930009,7.988e-05,2]
[423313167,1780051832000,-580.32822155,8e-05,2]
[423313168,1780051832000,-4419.67177845,8e-05,2]
[423313187,1780051832000,-500.0,8.219e-05,2]
[423313172,1780051832000,-4156.99956693,8.119e-05,2]
[423313177,1780051832000,-500.0,8.219e-05,2]
[423313176,1780051832000,-500.0,8.219e-05,2]
[423313182,1780051832000,-500.0,8.219e-05,2]
[423313183,1780051832000,-500.0,8.219e-05,2]
[423313181,1780051832000,-500.0,8.219e-05,2]
[423313179,1780051832000,-500.0,8.219e-05,2]
[423313173,1780051832000,-904.0563,8.219e-05,2]
[423313210,1780051832000,-500.0,8.219e-05,2]
[423313216,1780051832000,-500.0,8.219e-05,2]
[423313221,1780051832000,-500.0,8.219e-05,2]
[423313220,1780051832000,-500.0,8.219e-05,2]
[423313242,1780051832000,-299.59115215,8.219e-05,2]
[423313238,1780051832000,-500.0,8.219e-05,2]
[423313243,1780051832000,-84.56437201,8.219e-05,2]
[423313240,1780051832000,-259.2322645,8.219e-05,2]
[423313241,1780051832000,-200.40884785,8.219e-05,2]
[423313239,1780051832000,-240.7677355,8.219e-05,2]
[423313236,1780051832000,-500.0,8.219e-05,2]
[423313235,1780051832000,-500.0,8.219e-05,2]
[423313229,1780051832000,-500.0,8.219e-05,2]
[423313228,1780051832000,-500.0,8.219e-05,2]
[423313232,1780051832000,-500.0,8.219e-05,2]
[423313233,1780051832000,-500.0,8.219e-05,2]
[423313226,1780051832000,-500.0,8.219e-05,2]
[423313230,1780051832000,-500.0,8.219e-05,2]
[423313237,1780051832000,-500.0,8.219e-05,2]
[423313225,1780051832000,-222.20635585,8.219e-05,2]
[423313209,1780051832000,-500.46975875,8.219e-05,2]
[423313231,1780051832000,-500.0,8.219e-05,2]
[423313212,1780051832000,-500.0,8.219e-05,2]
[423313211,1780051832000,-500.0,8.219e-05,2]
[423313213,1780051832000,-500.0,8.219e-05,2]
[423313217,1780051832000,-154.59161119,8.219e-05,2]
[423313218,1780051832000,-504.22132771,8.219e-05,2]
[423313215,1780051832000,-222.78539373,8.219e-05,2]
[423313214,1780051832000,-500.0,8.219e-05,2]
[423313219,1780051832000,-500.0,8.219e-05,2]
[423313222,1780051832000,-500.0,8.219e-05,2]
[423313224,1780051832000,-500.0,8.219e-05,2]
[423313223,1780051832000,-504.49311849,8.219e-05,2]
[423313227,1780051832000,-500.0,8.219e-05,2]
[423313234,1780051832000,-500.0,8.219e-05,2]
[423313250,1780051838000,-152.0,7.874e-05,2]
[423313272,1780051839000,-300.0,8.299e-05,2]
[423313269,1780051839000,-300.0,8.299e-05,2]
[423313270,1780051839000,-300.0,8.299e-05,2]
[423313273,1780051839000,-300.0,8.299e-05,2]
[423313275,1780051839000,-300.0,8.299e-05,2]
[423313277,1780051839000,-300.0,8.299e-05,2]
[423313274,1780051839000,-300.0,8.299e-05,2]
[423313285,1780051839000,-500.0,8.492e-05,2]
[423313279,1780051839000,-300.0,8.299e-05,2]
[423313282,1780051839000,-500.0,8.492e-05,2]
[423313281,1780051839000,-500.0,8.492e-05,2]
[423313289,1780051839000,-500.0,8.492e-05,2]
[423313287,1780051839000,-500.0,8.492e-05,2]
[423313283,1780051839000,-500.0,8.492e-05,2]
[423313268,1780051839000,-300.0,8.299e-05,2]
[423313280,1780051839000,-238.55955963,8.492e-05,2]
[423313276,1780051839000,-300.0,8.299e-05,2]
[423313252,1780051839000,-415.43562799,8.219e-05,2]
[423313267,1780051839000,-300.0,8.299e-05,2]
[423313284,1780051839000,-500.0,8.492e-05,2]
[423313251,1780051839000,-5000.0,8e-05,2]
[423313253,1780051839000,-500.0,8.219e-05,2]
[423313254,1780051839000,-500.0,8.219e-05,2]
[423313265,1780051839000,-300.0,8.299e-05,2]
[423313255,1780051839000,-500.0,8.219e-05,2]
[423313257,1780051839000,-500.0,8.219e-05,2]
[423313278,1780051839000,-300.0,8.299e-05,2]
[423313259,1780051839000,-500.0,8.219e-05,2]
[423313256,1780051839000,-500.0,8.219e-05,2]
[423313262,1780051839000,-500.0,8.219e-05,2]
[423313260,1780051839000,-500.0,8.219e-05,2]
[423313258,1780051839000,-500.0,8.219e-05,2]
[423313261,1780051839000,-500.0,8.219e-05,2]
[423313264,1780051839000,-500.0,8.219e-05,2]
[423313263,1780051839000,-496.50385258,8.219e-05,2]
[423313266,1780051839000,-300.0,8.299e-05,2]
[423313286,1780051839000,-489.98253276,8.492e-05,2]
[423313271,1780051839000,-300.0,8.299e-05,2]
[423313291,1780051839000,-500.0,8.492e-05,2]
[423313308,1780051839000,-500.0,8.493e-05,2]
[423313311,1780051839000,-500.0,8.493e-05,2]
[423313312,1780051839000,-500.0,8.493e-05,2]
[423313306,1780051839000,-500.0,8.493e-05,2]
[423313310,1780051839000,-500.0,8.493e-05,2]
[423313315,1780051839000,-500.0,8.493e-05,2]
[423313326,1780051839000,-386.94471079,8.493e-05,2]
[423313307,1780051839000,-500.0,8.493e-05,2]
[423313319,1780051839000,-500.0,8.493e-05,2]
[423313325,1780051839000,-573.14403511,8.493e-05,2]
[423313316,1780051839000,-500.0,8.493e-05,2]
[423313318,1780051839000,-500.0,8.493e-05,2]
[423313324,1780051839000,-500.0,8.493e-05,2]
[423313320,1780051839000,-500.0,8.493e-05,2]
[423313323,1780051839000,-500.0,8.493e-05,2]
[423313321,1780051839000,-500.74979388,8.493e-05,2]
[423313317,1780051839000,-500.0,8.493e-05,2]
[423313309,1780051839000,-500.0,8.493e-05,2]
[423313288,1780051839000,-500.0,8.492e-05,2]
[423313304,1780051839000,-500.0,8.493e-05,2]
[423313290,1780051839000,-500.0,8.492e-05,2]
[423313292,1780051839000,-500.0,8.492e-05,2]
[423313301,1780051839000,-500.0,8.493e-05,2]
[423313294,1780051839000,-500.0,8.492e-05,2]
[423313293,1780051839000,-500.0,8.492e-05,2]
[423313295,1780051839000,-300.0,8.492e-05,2]
[423313300,1780051839000,-500.0,8.493e-05,2]
[423313296,1780051839000,-904.0563,8.493e-05,2]
[423313305,1780051839000,-500.0,8.493e-05,2]
[423313322,1780051839000,-367.88040388,8.493e-05,2]
[423313298,1780051839000,-500.0,8.493e-05,2]
[423313299,1780051839000,-500.0,8.493e-05,2]
[423313313,1780051839000,-500.0,8.493e-05,2]
[423313314,1780051839000,-500.0,8.493e-05,2]
[423313303,1780051839000,-500.0,8.493e-05,2]
[423313302,1780051839000,-500.0,8.493e-05,2]
[423313297,1780051839000,-500.0,8.493e-05,2]
[423313332,1780051841000,-113.05528921,8.493e-05,2]
[423313331,1780051841000,-500.0,8.219e-05,2]
[423313335,1780051841000,-500.0,8.493e-05,2]
[423313334,1780051841000,-158.4159687,8.493e-05,2]
[423313333,1780051841000,-341.5840313,8.493e-05,2]
[423313338,1780051842000,-447.98547547,8.493e-05,2]
[423313337,1780051842000,-500.0,8.493e-05,2]
[423313336,1780051842000,-500.0,8.493e-05,2]
[423313563,1780051846000,-500.0,8.493e-05,2]
[423313547,1780051846000,-500.0,8.219e-05,2]
[423313557,1780051846000,-500.0,8.493e-05,2]
[423313559,1780051846000,-500.0,8.493e-05,2]
[423313561,1780051846000,-307.2662933,8.493e-05,2]
[423313549,1780051846000,-52.01452453,8.493e-05,2]
[423313565,1780051846000,-500.0,8.493e-05,2]
[423313554,1780051846000,-500.0,8.493e-05,2]
[423313553,1780051846000,-500.0,8.493e-05,2]
[423313555,1780051846000,-500.0,8.493e-05,2]
[423313551,1780051846000,-500.0,8.493e-05,2]
[423313567,1780051846000,-500.0,8.493e-05,2]
[423313569,1780051846000,-500.0,8.493e-05,2]
[423313571,1780051846000,-500.0,8.493e-05,2]
[423313595,1780051847000,-500.0,8.767e-05,2]
[423313590,1780051847000,-500.0,8.767e-05,2]
[423313591,1780051847000,-500.0,8.767e-05,2]
[423313588,1780051847000,-500.0,8.767e-05,2]
[423313586,1780051847000,-548.94,8.767e-05,2]
[423313580,1780051847000,-159.15083661,8.767e-05,2]